fUSD/lending_fUSD_20250302
["ID","MTS","AMOUNT","RATE_DAILY","PERIOD"]
[355083662,1740887485938,-500.0,0.00026301,2]
[355083664,1740887485948,-560.4,0.00026301,2]
[355083666,1740887485958,-500.0,0.00026301,2]
[355083668,1740887485968,-500.0,0.00026301,2]
[355083670,1740887485978,-500.0,0.00026301,2]
[355083672,1740887485988,-1341.6,0.00026301,2]
[355083674,1740887485997,-500.0,0.00026301,2]
[355083676,1740887486007,-1584.9,0.00026301,2]
[355083678,1740887486017,-500.0,0.00026301,2]
[355083680,1740887486026,-1078.1,0.00026301,2]
[355083682,1740887486036,-1521.75,0.00026301,2]
[355083684,1740887486046,-1865.0,0.00026301,2]
[355083686,1740887486056,-500.0,0.00026301,2]
[355083689,1740887486070,-1655.28,0.00026301,2]
[355083691,1740887486080,-500.0,0.00026301,2]
[355083693,1740887486091,-500.0,0.00026301,2]
[355083695,1740887486101,-500.0,0.00026301,2]
[355083697,1740887486111,-500.0,0.00026301,2]
[355083699,1740887486121,-500.0,0.00026301,2]
[355083701,1740887486131,-1038.07,0.00026301,2]
[355083703,1740887486140,-500.0,0.00026301,2]
[355083705,1740887486151,-500.0,0.00026301,2]
[355083708,1740887486160,-500.0,0.00026301,2]
[355083710,1740887486170,-500.0,0.00026301,2]
[355083712,1740887486180,-500.0,0.00026301,2]
[355083714,1740887486190,-500.0,0.00026301,2]
[355083716,1740887486200,-742.83,0.00026301,2]
[355083718,1740887486211,-151.0,0.00026301,7]
[355083720,1740887486221,-500.0,0.00026301,2]
[355083722,1740887486231,-938.31,0.00026301,2]
[355083740,1740887486399,-1459.72,0.00026301,2]
[355083742,1740887486410,-500.0,0.00026301,2]
[355083744,1740887486419,-500.0,0.00026301,2]
[355083746,1740887486429,-532.91,0.00026301,2]
[355083748,1740887486440,-994.97,0.00026301,2]
[355083750,1740887486449,-500.0,0.00026301,2]
[355083752,1740887486459,-500.0,0.00026301,2]
[355083754,1740887486469,-709.92,0.00026301,2]
[355083756,1740887486479,-500.0,0.00026301,2]
[355083758,1740887486489,-1170.83,0.00026301,2]
[355083760,1740887486499,-500.0,0.00026301,2]
[355083762,1740887486509,-500.0,0.00026301,2]
[355083764,1740887486519,-500.0,0.00026301,2]
[355083766,1740887486529,-1135.5,0.00026301,2]
[355083768,1740887486539,-500.0,0.00026301,2]
[355083770,1740887486549,-839.78,0.00026301,2]
[355083772,1740887486559,-500.0,0.00026301,2]
[355083774,1740887486570,-707.46,0.00026301,2]
[355083776,1740887486579,-233.1,0.00026301,2]
[355083778,1740887486589,-500.0,0.00026301,2]
[355083780,1740887486601,-696.66,0.00026301,2]
[355083782,1740887486616,-500.0,0.00026301,2]
[355083784,1740887486626,-619.89,0.00026301,2]
[355083786,1740887486637,-500.0,0.00026301,2]
[355083788,1740887486648,-1502.86,0.00026301,2]
[355083790,1740887486658,-590.17,0.00026301,2]
[355083792,1740887486668,-500.0,0.00026301,2]
[355083795,1740887486683,-500.0,0.00026301,2]
[355083797,1740887486695,-500.0,0.00026301,2]
[355083800,1740887486716,-1326.11,0.00026301,2]
[355083802,1740887486729,-151.0,0.00026301,7]
[355083804,1740887486740,-500.0,0.00026301,2]
[355083806,1740887486750,-522.59,0.00026301,2]
[355083808,1740887486761,-500.0,0.00026301,2]
[355083810,1740887486772,-863.92,0.00026301,2]
[355083812,1740887486782,-500.0,0.00026301,2]
[355083814,1740887486793,-500.0,0.00026301,2]
[355083817,1740887486803,-179.06588508,0.00026301,2]
[355083819,1740887486814,-1570.35,0.00026301,2]
[355083821,1740887486824,-1416.37,0.00026301,2]
[355083823,1740887486834,-500.0,0.00026301,2]
[355083825,1740887486844,-599.84,0.00026301,2]
[355083827,1740887486855,-156.440224,0.00026301,7]
[355083829,1740887486864,-1711.31,0.00026301,2]
[355083831,1740887486875,-500.0,0.00026301,2]
[355083833,1740887486884,-500.0,0.00026301,2]
[355083835,1740887486894,-623.26,0.00026301,2]
[355083837,1740887486903,-179.985,0.00026339,13]
[355083839,1740887486913,-2187.53,0.00026339,13]
[355083840,1740887486923,-284.76176158,0.00026383,4]
[355083843,1740887486936,-2162.02846587,0.00026384,2]
[355083845,1740887486948,-967.0,0.00026386,2]
[355083847,1740887486958,-157.03,0.00026403,2]
[355083849,1740887486968,-500.0,0.00026448,2]
[355083851,1740887486979,-500.0,0.00026448,2]
[355083853,1740887486989,-505.0,0.00026448,2]
[355083855,1740887486999,-1062.32,0.00026448,2]
[355083857,1740887487009,-2110.0,0.000265,2]
[355083859,1740887487020,-500.0,0.00026573,2]
[355083861,1740887487030,-506.45686842,0.00026574,2]
[355083863,1740887487040,-500.0,0.00026574,2]
[355083865,1740887487050,-2206.95,0.00026574,2]
[355083867,1740887487061,-1593.1,0.00026574,2]
[355083869,1740887487070,-1214.58,0.00026574,2]
[355083871,1740887487081,-604.69,0.00026574,2]
[355083873,1740887487091,-1815.67,0.00026574,2]
[355083876,1740887487101,-2287.74,0.00026574,2]
[355083878,1740887487111,-1353.94,0.00026574,2]
[355083880,1740887487123,-882.39,0.00026574,2]
[355083882,1740887487132,-151.0,0.00026574,7]
[355083884,1740887487146,-1111.3,0.00026574,2]
[355083886,1740887487156,-151.0,0.00026574,7]
[355083888,1740887487166,-2523.38,0.00026574,2]
[355083890,1740887487175,-198.095966,0.00026574,7]
[355083892,1740887487188,-153.552817,0.00026574,7]
[355083894,1740887487198,-500.0,0.00026574,2]
[355083896,1740887487208,-161.372876,0.00026574,7]
[355083898,1740887487224,-1004.64,0.00026574,2]
[355083900,1740887487235,-151.0,0.00026574,7]
[355083902,1740887487246,-151.0,0.00026574,7]
[355083905,1740887487257,-151.0,0.00026574,7]
[355083907,1740887487267,-500.0,0.00026574,2]
[355083909,1740887487277,-1813.84,0.00026574,2]
[355083911,1740887487288,-1689.15,0.00026574,2]
[355083913,1740887487299,-151.0,0.00026574,7]
[355083915,1740887487310,-1000.0,0.00026574,2]
[355083917,1740887487322,-1508.64,0.00026574,2]
[355083919,1740887487332,-500.0,0.00026574,2]
[355083921,1740887487342,-1571.69,0.00026574,2]
[355083923,1740887487353,-609.55,0.00026574,2]
[355083925,1740887487364,-500.0,0.00026575,2]
[355083927,1740887487374,-500.0,0.00026575,2]
[355083929,1740887487384,-615.81,0.00026575,2]
[355083931,1740887487394,-500.0,0.00026575,2]
[355083934,1740887487405,-500.0,0.00026575,2]
[355083936,1740887487416,-500.0,0.00026575,2]
[355083938,1740887487426,-500.0,0.00026575,2]
[355083940,1740887487438,-500.0,0.00026575,2]
[355083942,1740887487449,-500.0,0.00026575,2]
[355083944,1740887487459,-500.0,0.00026575,2]
[355083946,1740887487470,-500.0,0.00026575,2]
[355083948,1740887487482,-500.0,0.00026575,2]
[355083950,1740887487493,-500.0,0.00026575,2]
[355083952,1740887487504,-500.0,0.00026575,2]
[355083954,1740887487515,-500.0,0.00026575,2]
[355083956,1740887487525,-500.0,0.00026575,2]
[355083958,1740887487535,-500.0,0.00026575,2]
[355083960,1740887487546,-500.0,0.00026575,2]
[355083963,1740887487556,-500.0,0.00026575,2]
[355083964,1740887487566,-500.0,0.00026575,2]
[355083966,1740887487576,-500.0,0.00026575,2]
[355083969,1740887487587,-500.0,0.00026575,2]
[355083971,1740887487599,-500.0,0.00026575,2]
[355083973,1740887487614,-513.38,0.00026575,2]
[355083975,1740887487625,-500.0,0.00026575,2]
[355083977,1740887487635,-500.0,0.00026575,2]
[355083979,1740887487648,-297.4,0.00026575,2]
[355083981,1740887487658,-500.0,0.00026575,2]
[355083983,1740887487668,-500.0,0.00026575,2]
[355083985,1740887487679,-805.392929,0.00026575,2]
[355083987,1740887487692,-500.0,0.00026575,2]
[355083989,1740887487702,-500.0,0.00026575,2]
[355083991,1740887487713,-500.0,0.00026575,2]
[355083993,1740887487723,-500.0,0.00026575,2]
[355083995,1740887487733,-500.0,0.00026575,2]
[355083998,1740887487748,-617.82,0.00026575,2]
[355084000,1740887487759,-792.3,0.00026575,2]
[355084002,1740887487769,-500.0,0.00026575,2]
[355084004,1740887487780,-500.0,0.00026575,2]
[355084006,1740887487791,-811.726163,0.00026575,2]
[355084008,1740887487802,-915.56,0.00026575,2]
[355084010,1740887487813,-500.0,0.00026575,2]
[355084012,1740887487823,-500.0,0.00026575,2]
[355084014,1740887487834,-500.0,0.00026575,2]
[355084016,1740887487844,-985.91,0.00026575,2]
[355084018,1740887487855,-607.74,0.00026575,2]
[355084021,1740887487865,-500.0,0.00026575,2]
[355084023,1740887487875,-500.0,0.00026575,2]
[355084025,1740887487886,-500.0,0.00026575,2]
[355084027,1740887487896,-500.0,0.00026575,2]
[355084029,1740887487906,-500.0,0.00026575,2]
[355084031,1740887487916,-500.0,0.00026575,2]
[355084033,1740887487926,-500.0,0.00026575,2]
[355084035,1740887487938,-500.0,0.00026575,2]
[355084037,1740887487948,-500.0,0.00026575,2]
[355084039,1740887487957,-500.0,0.00026575,2]
[355084041,1740887487968,-500.0,0.00026575,2]
[355084043,1740887487978,-500.0,0.00026575,2]
[355084045,1740887487988,-713.04,0.00026575,2]
[355084047,1740887487997,-500.0,0.00026575,2]
[355084049,1740887488008,-563.62,0.00026575,2]
[355084051,1740887488018,-500.0,0.00026575,2]
[355084053,1740887488028,-500.0,0.00026575,2]
[355084055,1740887488038,-500.0,0.00026575,2]
[355084057,1740887488048,-500.0,0.00026575,2]
[355084059,1740887488058,-500.0,0.00026575,2]
[355084061,1740887488068,-500.0,0.00026575,2]
[355084063,1740887488078,-500.0,0.00026575,2]
[355084065,1740887488089,-500.0,0.00026575,2]
[355084067,1740887488101,-500.0,0.00026575,2]
[355084069,1740887488111,-887.27,0.00026575,2]
[355084071,1740887488120,-500.0,0.00026575,2]
[355084073,1740887488130,-500.0,0.00026575,2]
[355084075,1740887488141,-500.0,0.00026575,2]
[355084078,1740887488151,-500.0,0.00026575,2]
[355084080,1740887488162,-500.0,0.00026575,2]
[355084082,1740887488172,-500.0,0.00026575,2]
[355084084,1740887488182,-901.65,0.00026575,2]
[355084086,1740887488193,-451.20817859,0.00026575,2]
[355084088,1740887488204,-507.51909599,0.00026575,2]
[355084090,1740887488214,-379.90308538,0.00026575,2]
[355084092,1740887488224,-826.95,0.00026575,2]
[355084094,1740887488235,-500.0,0.00026575,2]
[355084096,1740887488246,-500.0,0.00026575,2]
[355084099,1740887488261,-204.76510285,0.00026575,2]
[355084101,1740887488271,-500.0,0.00026575,2]
[355084103,1740887488281,-500.0,0.00026575,2]
[355084105,1740887488292,-500.0,0.00026575,2]
[355084107,1740887488302,-642.02,0.00026575,2]
[355084109,1740887488313,-500.0,0.00026575,2]
[355084111,1740887488323,-500.0,0.00026575,2]
[355084113,1740887488333,-396.51789785,0.00026575,2]
[355084115,1740887488343,-522.88,0.00026575,2]
[355084117,1740887488353,-500.0,0.00026575,2]
[355084119,1740887488363,-500.0,0.00026575,2]
[355084121,1740887488373,-500.0,0.00026575,2]
[355084123,1740887488383,-500.0,0.00026575,2]
[355084125,1740887488393,-500.0,0.00026575,2]
[355084127,1740887488403,-500.0,0.00026575,2]
[355084129,1740887488413,-500.0,0.00026575,2]
[355084131,1740887488423,-1059.55,0.00026575,2]
[355084133,1740887488433,-500.0,0.00026575,2]
[355084135,1740887488445,-500.0,0.00026575,2]
[355084137,1740887488455,-500.0,0.00026575,2]
[355084139,1740887488465,-151.0,0.00026575,7]
[355084141,1740887488475,-500.0,0.00026575,2]
[355084143,1740887488485,-151.0,0.00026575,7]
[355084145,1740887488495,-500.0,0.00026575,2]
[355084147,1740887488505,-581.73,0.00026575,2]
[355084150,1740887488516,-565.1,0.00026575,2]
[355084152,1740887488526,-628.42,0.00026575,2]
[355084154,1740887488536,-500.0,0.00026575,2]
[355084156,1740887488547,-249.056344,0.00026575,7]
[355084158,1740887488557,-500.0,0.00026575,2]
[355084160,1740887488567,-867.58,0.00026575,2]
[355084162,1740887488577,-500.0,0.00026575,2]
[355084164,1740887488587,-1218.62,0.00026575,2]
[355084166,1740887488598,-500.0,0.00026575,2]
[355084168,1740887488613,-500.0,0.00026575,2]
[355084171,1740887488623,-500.0,0.00026575,2]
[355084188,1740887488777,-1015.97,0.00026575,2]
[355084191,1740887488801,-507.43007959,0.00026575,2]
[355084193,1740887488811,-500.0,0.00026575,2]
[355084195,1740887488821,-1288.29,0.00026575,2]
[355084197,1740887488830,-500.0,0.00026575,2]
[355084199,1740887488839,-500.0,0.00026575,2]
[355084200,1740887488849,-856.24,0.00026575,2]
[355084201,1740887488859,-500.0,0.00026575,2]
[355084202,1740887488868,-577.63,0.00026575,2]
[355084203,1740887488878,-1023.39,0.00026575,2]
[355084204,1740887488899,-500.0,0.00026575,2]
[355084205,1740887488911,-154.46196,0.00026575,7]
[355084206,1740887488921,-1167.74,0.00026575,2]
[355084207,1740887488931,-1673.85,0.00026575,2]
[355084208,1740887488941,-566.11,0.00026575,2]
[355084209,1740887488951,-500.0,0.00026575,2]
[355084210,1740887488962,-2540.27,0.00026575,2]
[355084211,1740887488972,-500.0,0.00026575,2]
[355084212,1740887488982,-752.51,0.00026575,2]
[355084213,1740887488992,-1557.28,0.00026575,2]
[355084214,1740887489002,-870.61,0.00026575,2]
[355084215,1740887489012,-1783.03,0.00026575,2]
[355084217,1740887489023,-533.75,0.00026575,2]
[355084219,1740887489033,-2012.85,0.00026575,2]
[355084221,1740887489044,-1176.97,0.00026575,2]
[355084223,1740887489055,-844.33,0.00026575,2]
[355084225,1740887489065,-1475.57,0.00026575,2]
[355084227,1740887489075,-500.0,0.00026575,2]
[355084229,1740887489086,-1746.05,0.00026575,2]
[355084231,1740887489096,-599.92,0.00026575,2]
[355084233,1740887489106,-500.0,0.00026575,2]
[355084235,1740887489117,-500.0,0.00026575,2]
[355084237,1740887489128,-1535.97,0.00026575,2]
[355084239,1740887489138,-1274.93,0.00026575,2]
[355084241,1740887489148,-500.0,0.00026575,2]
[355084243,1740887489158,-608.12,0.00026575,2]
[355084245,1740887489168,-515.13,0.00026575,2]
[355084247,1740887489177,-733.69,0.00026575,2]
[355084249,1740887489188,-500.0,0.00026575,2]
[355084251,1740887489199,-560.4,0.00026575,2]
[355084253,1740887489209,-500.0,0.00026575,2]
[355084255,1740887489219,-500.0,0.00026575,2]
[355084257,1740887489229,-500.0,0.00026575,2]
[355084259,1740887489238,-1341.6,0.00026575,2]
[355084261,1740887489249,-548.7,0.00026575,2]
[355084263,1740887489259,-1584.9,0.00026575,2]
[355084265,1740887489268,-338.68,0.00026575,2]
[355084267,1740887489279,-1078.1,0.00026575,2]
[355084269,1740887489289,-1521.75,0.00026575,2]
[355084272,1740887489299,-1865.0,0.00026575,2]
[355084274,1740887489309,-500.0,0.00026575,2]
[355084276,1740887489319,-1655.28,0.00026575,2]
[355084278,1740887489330,-500.0,0.00026575,2]
[355084280,1740887489340,-500.0,0.00026575,2]
[355084281,1740887489349,-500.0,0.00026575,2]
[355084283,1740887489360,-500.0,0.00026575,2]
[355084285,1740887489370,-500.0,0.00026575,2]
[355084288,1740887489380,-1038.07,0.00026575,2]
[355084290,1740887489395,-168.08,0.00026575,2]
[355084292,1740887489406,-500.0,0.00026575,2]
[355084294,1740887489417,-500.0,0.00026575,2]
[355084296,1740887489427,-500.0,0.00026575,2]
[355084298,1740887489438,-500.0,0.00026575,2]
[355084300,1740887489449,-500.0,0.00026575,2]
[355084302,1740887489459,-742.83,0.00026575,2]
[355084304,1740887489470,-500.0,0.00026575,2]
[355084306,1740887489481,-938.31,0.00026575,2]
[355084308,1740887489491,-1459.72,0.00026575,2]
[355084310,1740887489501,-500.0,0.00026575,2]
[355084312,1740887489510,-500.0,0.00026575,2]
[355084315,1740887489521,-532.91,0.00026575,2]
[355084317,1740887489531,-994.97,0.00026575,2]
[355084319,1740887489541,-500.0,0.00026575,2]
[355084321,1740887489552,-500.0,0.00026575,2]
[355084323,1740887489562,-709.92,0.00026575,2]
[355084325,1740887489572,-500.0,0.00026575,2]
[355084327,1740887489583,-1170.83,0.00026575,2]
[355084329,1740887489593,-500.0,0.00026575,2]
[355084331,1740887489609,-500.0,0.00026575,2]
[355084333,1740887489619,-500.0,0.00026575,2]
[355084335,1740887489631,-1135.5,0.00026575,2]
[355084337,1740887489643,-500.0,0.00026575,2]
[355084339,1740887489652,-839.78,0.00026575,2]
[355084341,1740887489663,-500.0,0.00026575,2]
[355084343,1740887489674,-707.46,0.00026575,2]
[355084346,1740887489686,-500.0,0.00026575,2]
[355084348,1740887489697,-696.66,0.00026575,2]
[355084350,1740887489707,-500.0,0.00026575,2]
[355084352,1740887489718,-619.89,0.00026575,2]
[355084354,1740887489728,-500.0,0.00026575,2]
[355084356,1740887489738,-1502.86,0.00026575,2]
[355084358,1740887489748,-590.17,0.00026575,2]
[355084360,1740887489759,-500.0,0.00026575,2]
[355084362,1740887489769,-500.0,0.00026575,2]
[355084364,1740887489780,-500.0,0.00026575,2]
[355084366,1740887489790,-1326.11,0.00026575,2]
[355084368,1740887489800,-500.0,0.00026575,2]
[355084370,1740887489811,-522.59,0.00026575,2]
[355084372,1740887489822,-500.0,0.00026575,2]
[355084374,1740887489832,-863.92,0.00026575,2]
[355084376,1740887489843,-500.0,0.00026575,2]
[355084378,1740887489853,-500.0,0.00026575,2]
[355084380,1740887489864,-1570.35,0.00026575,2]
[355084382,1740887489874,-1416.37,0.00026575,2]
[355084384,1740887489884,-500.0,0.00026575,2]
[355084386,1740887489895,-599.84,0.00026575,2]
[355084389,1740887489906,-1711.31,0.00026575,2]
[355084391,1740887489917,-500.0,0.00026575,2]
[355084393,1740887489927,-500.0,0.00026575,2]
[355084395,1740887489938,-623.26,0.00026575,2]
[355084397,1740887489948,-157.03,0.00026616,2]
[355084399,1740887489959,-1040.53477436,0.00026688,2]
[355084401,1740887489969,-284.76176158,0.00026693,4]
[355084403,1740887489979,-2162.02846587,0.00026749,2]
[355084405,1740887489990,-500.0,0.0002676,120]
[355084407,1740887490000,-157.03,0.00026829,2]
[355084409,1740887490010,-500.0,0.00026847,2]
[355084411,1740887490020,-500.0,0.00026848,2]
[355084413,1740887490031,-2206.95,0.00026848,2]
[355084415,1740887490041,-1593.1,0.00026848,2]
[355084417,1740887490051,-1214.58,0.00026848,2]
[355084419,1740887490061,-604.69,0.00026848,2]
[355084421,1740887490070,-1815.67,0.00026848,2]
[355084423,1740887490083,-2287.74,0.00026848,2]
[355084425,1740887490093,-1353.94,0.00026848,2]
[355084427,1740887490103,-882.39,0.00026848,2]
[355084429,1740887490114,-1111.3,0.00026848,2]
[355084431,1740887490124,-2523.38,0.00026848,2]
[355084433,1740887490135,-500.0,0.00026848,2]
[355084435,1740887490146,-1004.64,0.00026848,2]
[355084437,1740887490157,-500.0,0.00026848,2]
[355084439,1740887490167,-1813.84,0.00026848,2]
[355084441,1740887490178,-1689.15,0.00026848,2]
[355084444,1740887490189,-1000.0,0.00026848,2]
[355084446,1740887490199,-1508.64,0.00026848,2]
[355084448,1740887490208,-1571.69,0.00026848,2]
[355084450,1740887490219,-609.55,0.00026848,2]
[355084452,1740887490229,-500.0,0.00026849,2]
[355084454,1740887490239,-500.0,0.00026849,2]
[355084456,1740887490249,-615.81,0.00026849,2]
[355084458,1740887490259,-500.0,0.00026849,2]
[355084460,1740887490269,-500.0,0.00026849,2]
[355084462,1740887490280,-500.0,0.00026849,2]
[355084464,1740887490290,-500.0,0.00026849,2]
[355084466,1740887490300,-500.0,0.00026849,2]
[355084468,1740887490310,-500.0,0.00026849,2]
[355084470,1740887490320,-500.0,0.00026849,2]
[355084472,1740887490331,-500.0,0.00026849,2]
[355084474,1740887490341,-500.0,0.00026849,2]
[355084476,1740887490352,-500.0,0.00026849,2]
[355084478,1740887490362,-500.0,0.00026849,2]
[355084480,1740887490372,-500.0,0.00026849,2]
[355084482,1740887490382,-500.0,0.00026849,2]
[355084484,1740887490393,-500.0,0.00026849,2]
[355084487,1740887490403,-300.72,0.00026849,2]
[355084489,1740887490414,-500.0,0.00026849,2]
[355084491,1740887490424,-500.0,0.00026849,2]
[355084493,1740887490435,-500.0,0.00026849,2]
[355084494,1740887490447,-500.0,0.00026849,2]
[355084496,1740887490458,-500.0,0.00026849,2]
[355084497,1740887490468,-513.38,0.00026849,2]
[355084498,1740887490478,-500.0,0.00026849,2]
[355084500,1740887490490,-500.0,0.00026849,2]
[355084502,1740887490500,-500.0,0.00026849,2]
[355084503,1740887490511,-500.0,0.00026849,2]
[355084505,1740887490521,-805.392929,0.00026849,2]
[355084506,1740887490531,-500.0,0.00026849,2]
[355084507,1740887490542,-500.0,0.00026849,2]
[355084509,1740887490551,-500.0,0.00026849,2]
[355084511,1740887490562,-500.0,0.00026849,2]
[355084512,1740887490573,-500.0,0.00026849,2]
[355084514,1740887490583,-617.82,0.00026849,2]
[355084515,1740887490594,-792.3,0.00026849,2]
[355084517,1740887490607,-500.0,0.00026849,2]
[355084518,1740887490618,-500.0,0.00026849,2]
[355084520,1740887490628,-811.726163,0.00026849,2]
[355084521,1740887490640,-915.56,0.00026849,2]
[355084523,1740887490650,-500.0,0.00026849,2]
[355084524,1740887490660,-500.0,0.00026849,2]
[355084526,1740887490670,-500.0,0.00026849,2]
[355084527,1740887490682,-985.91,0.00026849,2]
[355084529,1740887490692,-607.74,0.00026849,2]
[355084530,1740887490703,-500.0,0.00026849,2]
[355084532,1740887490712,-173.66442714,0.00026849,2]
[355084533,1740887490723,-500.0,0.00026849,2]
[355084535,1740887490734,-500.0,0.00026849,2]
[355084536,1740887490744,-500.0,0.00026849,2]
[355084538,1740887490754,-500.0,0.00026849,2]
[355084539,1740887490764,-500.0,0.00026849,2]
[355084541,1740887490775,-500.0,0.00026849,2]
[355084543,1740887490785,-500.0,0.00026849,2]
[355084544,1740887490794,-500.0,0.00026849,2]
[355084546,1740887490805,-522.56,0.00026849,2]
[355084547,1740887490814,-713.04,0.00026849,2]
[355084556,1740887490963,-500.0,0.00026849,2]
[355084558,1740887490975,-500.0,0.00026849,2]
[355084559,1740887490985,-563.62,0.00026849,2]
[355084561,1740887490995,-500.0,0.00026849,2]
[355084562,1740887491004,-500.0,0.00026849,2]
[355084564,1740887491015,-500.0,0.00026849,2]
[355084566,1740887491025,-500.0,0.00026849,2]
[355084567,1740887491035,-500.0,0.00026849,2]
[355084569,1740887491045,-500.0,0.00026849,2]
[355084570,1740887491054,-500.0,0.00026849,2]
[355084572,1740887491064,-500.0,0.00026849,2]
[355084573,1740887491074,-500.0,0.00026849,2]
[355084575,1740887491084,-887.27,0.00026849,2]
[355084577,1740887491095,-500.0,0.00026849,2]
[355084578,1740887491104,-431.50074423,0.00026849,2]
[355084580,1740887491115,-251.68607028,0.00026849,2]
[355084581,1740887491128,-500.0,0.00026849,2]
[355084583,1740887491139,-500.0,0.00026849,2]
[355084584,1740887491149,-500.0,0.00026849,2]
[355084586,1740887491159,-901.65,0.00026849,2]
[355084588,1740887491169,-826.95,0.00026849,2]
[355084589,1740887491179,-500.0,0.00026849,2]
[355084591,1740887491191,-337.97237913,0.00026849,2]
[355084593,1740887491202,-500.0,0.00026849,2]
[355084594,1740887491212,-500.0,0.00026849,2]
[355084596,1740887491223,-500.0,0.00026849,2]
[355084597,1740887491232,-642.02,0.00026849,2]
[355084599,1740887491242,-500.0,0.00026849,2]
[355084600,1740887491251,-500.0,0.00026849,2]
[355084602,1740887491261,-522.88,0.00026849,2]
[355084604,1740887491271,-500.0,0.00026849,2]
[355084605,1740887491281,-500.0,0.00026849,2]
[355084607,1740887491291,-500.0,0.00026849,2]
[355084608,1740887491300,-500.0,0.00026849,2]
[355084610,1740887491311,-500.0,0.00026849,2]
[355084612,1740887491321,-500.0,0.00026849,2]
[355084613,1740887491331,-507.59277932,0.00026849,2]
[355084615,1740887491340,-1059.55,0.00026849,2]
[355084617,1740887491352,-500.0,0.00026849,2]
[355084618,1740887491361,-500.0,0.00026849,2]
[355084620,1740887491371,-500.0,0.00026849,2]
[355084622,1740887491381,-500.0,0.00026849,2]
[355084623,1740887491391,-500.0,0.00026849,2]
[355084625,1740887491401,-581.73,0.00026849,2]
[355084626,1740887491411,-565.1,0.00026849,2]
[355084628,1740887491421,-628.42,0.00026849,2]
[355084630,1740887491430,-500.0,0.00026849,2]
[355084631,1740887491443,-500.0,0.00026849,2]
[355084633,1740887491453,-867.58,0.00026849,2]
[355084635,1740887491463,-500.0,0.00026849,2]
[355084636,1740887491473,-1218.62,0.00026849,2]
[355084638,1740887491482,-500.0,0.00026849,2]
[355084639,1740887491492,-500.0,0.00026849,2]
[355084641,1740887491502,-508.21436247,0.00026849,2]
[355084643,1740887491511,-1015.97,0.00026849,2]
[355084644,1740887491521,-500.0,0.00026849,2]
[355084646,1740887491530,-1288.29,0.00026849,2]
[355084648,1740887491539,-500.0,0.00026849,2]
[355084649,1740887491549,-500.0,0.00026849,2]
[355084651,1740887491558,-856.24,0.00026849,2]
[355084652,1740887491568,-500.0,0.00026849,2]
[355084654,1740887491578,-577.63,0.00026849,2]
[355084655,1740887491589,-1023.39,0.00026849,2]
[355084657,1740887491601,-500.0,0.00026849,2]
[355084659,1740887491614,-1167.74,0.00026849,2]
[355084661,1740887491624,-1673.85,0.00026849,2]